bitfinex-derivatives/quotes_ETHF0:USTF0_20250102
["timestamp","ask_amount","ask_price","bid_price","bid_amount"]
[1735777601061,0.29504,3396.3,3396.2,1.507]
[1735777601262,0.29498,3397.0,3396.5,0.29502]
[1735777601557,3.2078,3396.9,3396.5,0.29502]
[1735777601864,0.29504,3396.3,3396.2,1.507]
[1735777602062,3.43000261,3397.8,3396.2,1.507]
[1735777602359,0.29496,3397.2,3396.5,3.50282]
[1735777602555,3.2078,3397.6,3396.5,3.2078]
[1735777602752,0.47279103,3397.5,3396.5,44.30282]
[1735777603057,1.01245802,3396.6,3396.5,44.30282]
[1735777603366,1.01245802,3396.6,3396.1,3.2078]
[1735777603661,1.01245802,3396.6,3395.8,7.374]
[1735777603662,4.0504,3396.5,3395.8,7.374]
[1735777604053,0.8426,3396.5,3395.8,7.374]
[1735777604263,0.29506,3396.1,3395.8,7.374]
[1735777604459,0.8426,3396.5,3395.8,7.374]
[1735777604460,1.6185,3396.4,3395.8,7.374]
[1735777604668,1.6185,3396.4,3395.9,0.29507]
[1735777604669,0.29504,3396.3,3395.9,0.29507]
[1735777604863,1.6185,3396.4,3395.7,4.7148]
[1735777605165,0.29508,3395.8,3395.7,3.2078]
[1735777605666,0.29512,3395.4,3395.2,1.507]
[1735777605866,3.2078,3395.9,3395.2,1.507]
[1735777606169,0.29512,3395.4,3395.2,1.507]
[1735777606467,3.2078,3395.9,3395.6,0.29509]
[1735777606468,3.50288,3395.9,3395.6,0.29509]
[1735777606669,3.50288,3395.9,3395.2,1.507]
[1735777606670,3.2078,3395.9,3395.2,1.507]
[1735777606866,3.2078,3395.9,3395.3,0.29512]
[1735777606867,0.2951,3395.6,3395.3,0.29512]
[1735777607162,0.2951,3395.6,3394.5,11.31878]
[1735777607163,3.2078,3395.5,3394.6,0.29518]
[1735777607469,3.2078,3395.5,3393.6,1.507]
[1735777607470,3.2078,3394.7,3393.6,1.507]
[1735777607664,0.8431,3394.6,3393.6,1.507]
[1735777607862,3.2078,3394.7,3393.6,1.507]
[1735777607863,3.2078,3394.7,3393.7,3.94596]
[1735777608067,3.50298,3394.7,3393.7,3.94596]
[1735777608271,1.61201543,3395.3,3393.7,3.2078]
[1735777608272,3.2078,3394.3,3393.7,3.2078]
[1735777608659,3.2078,3393.9,3393.6,1.507]
[1735777608866,3.2078,3393.9,3392.9,1.508]
[1735777609062,3.2078,3393.5,3392.9,1.508]
[1735777609262,3.2078,3393.1,3392.2,3.2078]
[1735777609567,3.2078,3393.1,3392.3,1.508]
[1735777610064,0.29537,3392.6,3392.1,1.80339]
[1735777610279,0.29537,3392.5,3392.1,0.2954]
[1735777610566,0.8649,3393.0,3392.3,0.29538]
[1735777610761,8.2078,3393.1,3392.0,1.508]
[1735777610762,3.50311,3393.2,3392.8,0.29534]
[1735777610962,3.2078,3393.2,3393.0,0.29532]
[1735777611465,3.43000261,3393.0,3392.3,3.2078]
[1735777611665,3.43000261,3393.0,3392.8,0.29534]
[1735777611874,3.43000261,3393.0,3392.1,40.8]
[1735777612167,3.43000261,3393.0,3392.3,0.29538]
[1735777612365,3.2078,3392.7,3392.2,1.508]
[1735777612562,0.29537,3392.5,3392.2,1.508]
[1735777612763,0.29538,3392.3,3391.5,40.8]
[1735777612963,0.8707,3392.6,3391.7,0.29543]
[1735777613169,3.2078,3392.3,3391.9,0.29541]
[1735777613368,3.2078,3392.3,3392.1,0.2954]
[1735777613663,3.43000261,3393.3,3391.7,1.508]
[1735777613664,3.2078,3392.8,3391.9,3.2078]
[1735777613971,6.63780261,3392.8,3391.9,3.2078]
[1735777614564,6.63780261,3392.8,3392.6,0.29536]
[1735777614768,6.63780261,3392.8,3392.0,1.508]
[1735777615064,3.2078,3392.8,3392.0,1.508]
[1735777615264,3.2078,3392.8,3392.1,0.2954]
[1735777615469,3.2078,3392.2,3391.5,40.8]
[1735777615665,0.29544,3391.8,3391.4,1.508]
[1735777615864,0.29541,3392.0,3391.4,1.80346]
[1735777616062,0.838,3392.1,3391.4,1.508]
[1735777616268,0.29544,3391.8,3391.4,1.508]
[1735777616568,0.29544,3391.7,3391.2,1.508]
[1735777616961,3.2078,3391.8,3391.2,1.508]
[1735777617161,3.2078,3391.8,3391.7,0.29544]
[1735777617474,3.2078,3391.8,3391.6,0.29544]
[1735777617666,3.2078,3391.8,3391.7,0.29544]
[1735777617860,3.2078,3391.8,3391.7,41.09544]
[1735777618066,3.2078,3391.8,3391.7,40.8]
[1735777618364,0.29544,3391.7,3391.5,1.509]
[1735777618564,3.2078,3391.8,3391.5,1.509]
[1735777619171,3.50323,3391.8,3391.5,1.509]
[1735777619474,0.29544,3391.7,3391.6,40.8]
[1735777619670,8.2078,3391.8,3390.5,3.2078]
[1735777619864,8.2078,3391.8,3390.4,1.509]
[1735777619865,3.2078,3390.9,3390.4,1.509]
[1735777620071,0.29551,3390.9,3390.5,0.29554]
[1735777620371,3.2078,3391.1,3391.0,0.2955]
[1735777620775,3.2078,3391.1,3390.9,1.509]
[1735777620968,3.2078,3391.1,3390.3,1.509]
[1735777621171,0.29551,3390.9,3390.4,0.29555]
[1735777621367,3.2078,3391.1,3390.5,0.29554]
[1735777621565,3.2078,3391.1,3390.1,3.2078]
[1735777621770,3.2078,3391.1,3390.1,4.7168]
[1735777622078,0.29551,3390.9,3390.5,0.29554]
[1735777622280,0.29553,3390.7,3390.3,0.29556]
[1735777622473,3.2078,3390.4,3389.6,40.8]
[1735777622673,3.2078,3390.4,3388.8,3.2078]
[1735777622674,3.2078,3390.0,3388.8,3.2078]
[1735777622874,0.29564,3389.4,3388.9,0.29567]
[1735777623173,0.29568,3389.0,3388.5,0.29571]
[1735777623376,3.2078,3388.8,3388.3,1.509]
[1735777623674,0.29572,3388.5,3388.0,0.29575]
[1735777623876,3.2078,3388.4,3387.6,1.521]
[1735777624078,3.2078,3388.0,3387.2,44.0078]
[1735777624271,3.2078,3388.0,3387.9,0.29577]
[1735777624272,3.207,3388.0,3387.9,0.29577]
[1735777624577,3.2078,3388.4,3387.6,3.2078]
[1735777624778,3.2078,3388.9,3387.7,0.73946]
[1735777625079,3.2078,3388.9,3387.8,1.521]
[1735777625287,3.2078,3388.9,3387.6,3.2078]
[1735777625288,0.29572,3388.5,3388.0,0.29575]
[1735777625581,3.2078,3388.5,3387.6,1.521]
[1735777625875,3.2078,3388.5,3387.2,1.521]
[1735777625876,3.2078,3387.7,3387.2,1.521]
[1735777626080,3.50359,3387.7,3387.2,1.81682]
[1735777626288,3.2078,3387.7,3387.2,0.29582]
[1735777626473,0.2958,3387.6,3386.9,1.81685]
[1735777626674,0.29579,3387.6,3387.0,0.29585]
[1735777626980,3.2078,3387.7,3387.4,0.29581]
[1735777627275,3.2078,3387.7,3387.6,0.29579]
[1735777627869,3.2078,3387.7,3387.1,3.2078]
[1735777628075,3.2078,3387.7,3387.1,4.7288]
[1735777628276,3.2078,3387.7,3387.6,0.29579]
[1735777628683,1.0122,3388.4,3387.1,1.521]
[1735777628684,3.2078,3388.1,3387.1,1.521]
[1735777628981,0.29578,3387.9,3387.4,0.29581]
[1735777629174,3.2078,3388.1,3387.1,0.29583]
[1735777629175,3.2078,3387.7,3387.1,0.29583]
[1735777629374,0.2958,3387.6,3386.8,1.521]
[1735777629571,3.2078,3387.2,3386.2,3.2078]
[1735777629978,3.2078,3386.7,3385.8,1.521]
[1735777630172,3.2078,3386.7,3385.9,0.29594]
[1735777630379,3.2078,3386.1,3385.5,0.29597]
[1735777630580,3.2078,3386.1,3385.4,1.521]
[1735777631082,2.5224,3387.1,3384.7,4.1763]
[1735777631083,3.2078,3385.9,3384.7,4.1763]
[1735777631277,3.2078,3385.1,3385.0,0.29602]
[1735777631578,3.2078,3385.1,3384.3,4.2239]
[1735777631878,3.2078,3384.6,3384.1,1.521]
[1735777632092,3.50389,3384.2,3383.5,41.09615]
[1735777632377,3.2078,3384.2,3383.1,8.908]
[1735777632573,3.2078,3383.5,3383.2,0.29617]
[1735777632778,3.2078,3383.5,3383.1,1.521]
[1735777632974,3.2078,3383.5,3382.5,1.522]
[1735777633175,3.2078,3382.9,3382.3,3.2078]
[1735777633385,3.2078,3382.9,3382.2,1.522]
[1735777633878,3.2078,3382.5,3381.4,3.2078]
[1735777634176,3.2078,3382.5,3382.0,0.29628]
[1735777634376,3.2078,3383.3,3382.4,3.2078]
[1735777634575,3.23794281,3383.7,3381.4,6.522]
[1735777634576,3.2078,3383.7,3382.8,3.2078]
[1735777634777,3.2078,3383.7,3382.7,1.522]
[1735777634985,3.2078,3383.7,3382.8,4.7298]
[1735777635378,3.2078,3383.7,3383.1,0.29619]
[1735777635577,3.2078,3383.7,3382.8,4.7298]
[1735777635578,3.2078,3383.7,3383.2,0.29617]
[1735777635777,4.1411,3384.1,3383.6,0.28360161]
[1735777635985,4.1411,3384.1,3383.2,3.2078]
[1735777636173,9.1411,3384.1,3383.2,3.2078]
[1735777636375,4.1411,3384.1,3383.2,3.2078]
[1735777636982,0.29611,3384.0,3383.2,3.2078]
[1735777637186,4.1411,3384.1,3383.2,3.2078]
[1735777637386,4.1411,3384.1,3383.8,0.29613]
[1735777637580,4.1411,3384.1,3383.2,3.2078]
[1735777637780,4.2022,3385.1,3384.0,3.2078]
[1735777637990,4.49822,3385.1,3384.5,0.29606]
[1735777638197,9.2022,3385.1,3384.4,3.2078]
[1735777638489,4.2022,3385.1,3384.4,3.2078]
[1735777638989,4.2022,3385.1,3384.8,0.29604]
[1735777639184,4.2022,3385.1,3384.4,3.2078]
[1735777639381,4.2022,3385.1,3383.9,4.7308]
[1735777639585,0.9944,3385.1,3384.8,0.29604]
[1735777639782,4.49822,3385.1,3384.5,0.29606]
[1735777639983,3.2078,3385.5,3384.7,3.2078]
[1735777640289,3.2078,3385.5,3385.4,0.29599]
[1735777640493,8.2078,3385.5,3384.3,3.2078]
[1735777640792,8.2078,3385.5,3384.3,3.50388]
[1735777640793,0.29603,3384.9,3384.3,3.50388]
[1735777640987,3.23794281,3385.2,3383.2,0.74045]
[1735777640988,6.44574281,3384.7,3383.8,3.2078]
[1735777641184,0.29604,3384.9,3384.3,0.29608]
[1735777641392,3.2078,3384.8,3383.6,3.2078]
[1735777641888,3.2078,3384.4,3383.6,3.2078]
[1735777642090,0.29609,3384.3,3383.7,0.29614]
[1735777642280,8.2078,3384.4,3383.3,1.523]
[1735777642480,0.29612,3383.9,3383.4,0.29616]
[1735777642690,3.23794281,3384.2,3383.3,1.523]
[1735777642691,3.2078,3384.0,3383.3,1.523]
[1735777642987,3.2078,3384.0,3383.5,0.29614]
[1735777643189,3.2078,3384.0,3383.4,0.29616]
[1735777643395,8.2078,3384.0,3383.0,3.2078]
[1735777643583,0.29614,3383.7,3383.1,0.29618]
[1735777643791,0.29613,3383.8,3383.0,3.50399]
[1735777644089,1.0206,3383.9,3383.5,0.29615]
[1735777644389,3.2078,3384.0,3383.9,0.29612]
[1735777644790,3.2078,3384.8,3383.9,3.2078]
[1735777644993,3.2078,3384.8,3384.5,0.29606]
[1735777645189,4.2175,3385.6,3385.2,0.296]
[1735777645392,7.45544281,3385.6,3384.1,3.2078]
[1735777645692,2.72885,3386.0,3384.9,3.2078]
[1735777645693,3.2078,3385.7,3384.9,3.2078]
[1735777646193,1.0206,3386.0,3385.9,0.29594]
[1735777646391,3.2078,3386.4,3386.0,0.29593]
[1735777646692,3.2078,3386.4,3386.3,0.29591]
[1735777647098,3.2078,3386.4,3386.2,0.29591]
[1735777647287,3.2078,3386.4,3386.0,0.29593]
[1735777647487,3.2078,3386.4,3386.1,0.29592]
[1735777647687,3.2078,3386.4,3385.6,1.524]
[1735777647993,0.29593,3386.1,3385.6,0.29597]
[1735777648193,0.29593,3386.2,3385.6,0.29596]
[1735777648396,3.2078,3386.3,3385.1,3.2078]
[1735777648591,0.29596,3385.8,3385.4,0.29599]
[1735777648900,8.2078,3386.3,3385.1,3.2078]
[1735777649088,8.2078,3386.3,3385.4,0.29598]
[1735777649089,0.29592,3386.2,3385.4,0.29598]
[1735777649286,0.29595,3385.9,3385.1,3.2078]
[1735777649489,0.29595,3385.9,3385.4,0.29598]
[1735777649696,5.0,3385.9,3385.1,3.2078]
[1735777650008,0.29592,3386.2,3385.8,0.29595]
[1735777650196,0.29593,3386.1,3385.6,0.29596]
[1735777650391,3.2078,3386.3,3385.9,0.29593]
[1735777650588,3.2078,3386.7,3385.9,3.2078]
[1735777650894,3.2078,3386.7,3386.3,0.2959]
[1735777651191,3.50367,3386.7,3386.3,0.2959]
[1735777651395,1.04,3387.0,3386.7,0.29587]
[1735777651789,3.2078,3387.5,3387.4,0.29581]
[1735777651988,3.2078,3387.5,3386.3,0.73977]
[1735777651989,3.2078,3387.9,3387.1,3.2078]
[1735777652197,0.29582,3387.4,3387.1,3.2078]
[1735777652395,0.29582,3387.3,3387.1,3.2078]
[1735777652595,0.29582,3387.4,3387.1,3.2078]
[1735777652900,0.29581,3387.5,3387.1,3.50363]
[1735777653095,3.2078,3387.9,3387.1,3.2078]
[1735777653398,0.29581,3387.5,3387.1,3.2078]
[1735777653598,1.9591,3388.0,3387.1,3.2078]
[1735777653796,1.9591,3388.0,3386.5,1.523]
[1735777653797,1.9591,3388.0,3387.5,3.2078]
[1735777654097,0.29571,3388.6,3388.1,0.29575]
[1735777654292,1.0243,3389.0,3387.9,3.2078]
[1735777654996,1.0243,3389.0,3388.3,3.2078]
[1735777655299,2.28201,3389.7,3388.8,0.29569]
[1735777655501,1.24131,3389.7,3388.7,3.2078]
[1735777655698,0.9457,3389.7,3388.7,3.2078]
[1735777655895,0.29563,3389.6,3389.0,0.29567]
[1735777656093,3.2078,3389.5,3388.7,3.2078]
[1735777656303,3.50343,3389.5,3388.9,0.29567]
[1735777656598,3.2078,3390.2,3389.5,0.29562]
[1735777656902,3.2078,3390.2,3388.3,5.51427281]
[1735777656903,0.29559,3390.0,3389.6,3.2078]
[1735777657095,3.2078,3390.2,3389.6,3.2078]
[1735777657301,0.29556,3390.4,3389.8,0.2956]
[1735777657505,4.2268,3390.6,3390.0,3.2078]
[1735777658201,0.29547,3391.3,3390.6,0.29553]
[1735777658500,0.29549,3391.1,3390.4,4.7438]
[1735777659201,0.29557,3390.2,3390.0,3.2078]
[1735777659502,3.2078,3391.1,3390.0,3.2078]
[1735777659697,3.2078,3391.1,3390.4,3.2078]
[1735777659902,0.29549,3391.2,3390.5,0.29554]
[1735777660101,4.1939,3391.5,3390.4,3.2078]
[1735777660504,3.2078,3391.5,3390.4,3.2078]
[1735777660701,3.2078,3391.5,3390.3,1.536]
[1735777660702,3.2078,3391.5,3390.8,3.2078]
[1735777661103,0.29549,3391.2,3390.8,3.2078]
[1735777661300,3.2078,3391.5,3390.8,3.2078]
[1735777661500,3.2078,3392.0,3391.2,3.2078]
[1735777661799,0.29543,3391.8,3391.2,3.50328]
[1735777662005,0.29544,3391.7,3391.2,3.2078]
[1735777662305,3.2078,3392.4,3391.4,0.29546]
[1735777662507,3.2078,3392.4,3391.2,3.2078]
[1735777662703,0.29542,3392.0,3391.6,3.2078]
[1735777663004,3.2078,3392.4,3391.6,3.2078]
[1735777663809,0.29541,3392.1,3391.6,3.2078]
[1735777664003,3.2078,3392.4,3391.6,3.2078]
[1735777664199,6.44574281,3392.8,3391.6,3.2078]
[1735777664507,0.29538,3392.4,3392.0,3.2078]
[1735777665209,3.2078,3392.8,3392.0,3.2078]
[1735777665708,0.29542,3391.9,3391.6,3.2078]
[1735777666512,0.29546,3391.5,3391.2,3.2078]
[1735777666802,3.2078,3392.4,3390.7,3.2078]
[1735777666803,3.2078,3391.6,3390.7,3.2078]
[1735777667003,0.29549,3391.1,3390.7,3.2078]
[1735777667208,3.2078,3391.6,3390.7,3.2078]
[1735777667209,0.29548,3391.3,3390.7,3.50332]
[1735777667411,3.23794281,3391.8,3390.7,3.2078]
[1735777667610,0.29547,3391.3,3390.7,3.50332]
[1735777667801,0.29546,3391.5,3390.7,3.2078]
[1735777668006,3.2078,3392.2,3390.8,3.2078]
[1735777668208,3.2078,3391.8,3390.7,0.29552]
[1735777668404,3.94638,3391.8,3390.5,1.83054]
[1735777668608,0.29546,3391.5,3391.0,0.2955]
[1735777668804,3.2078,3392.2,3391.2,3.2078]
[1735777669012,0.29545,3391.6,3391.0,0.29549]
[1735777669205,3.2078,3392.2,3390.7,3.2078]
[1735777669408,3.23794281,3392.3,3391.1,3.2078]
[1735777669811,0.29545,3391.6,3391.2,0.29548]
[1735777670007,3.2078,3392.2,3391.1,3.2078]
[1735777670214,3.23794281,3392.3,3391.1,3.2078]
[1735777670506,3.23794281,3392.3,3390.8,0.00894402]
[1735777670507,0.29543,3391.8,3391.5,3.2078]
[1735777670811,0.29545,3391.6,3391.5,3.2078]
[1735777671005,3.2078,3392.2,3391.5,3.2078]
[1735777671206,0.73851,3392.1,3391.0,0.2955]
[1735777671411,0.73851,3392.1,3390.9,3.2078]
[1735777671412,0.29546,3391.5,3390.9,3.2078]
[1735777671611,0.73851,3392.1,3391.0,0.2955]
[1735777671612,0.73852,3392.1,3391.0,0.2955]
[1735777671911,0.29546,3391.5,3391.0,0.2955]
[1735777672213,0.73852,3392.1,3390.9,3.2078]
[1735777672214,0.2955,3391.0,3390.9,3.2078]
[1735777672511,0.29551,3390.9,3390.8,0.00894402]
[1735777672909,4.1621,3392.0,3390.8,0.00894402]
[1735777673105,4.1621,3392.0,3391.1,0.29549]
[1735777673310,4.1621,3392.0,3390.9,3.2078]
[1735777673503,4.1621,3392.0,3390.8,0.00894402]
[1735777673504,0.29543,3391.9,3391.4,0.29546]
[1735777673708,0.29544,3391.8,3391.3,3.50327]
[1735777673910,0.29546,3391.4,3391.3,3.2078]
[1735777674107,3.97642281,3392.3,3391.3,3.50327]
[1735777674307,0.29543,3391.9,3391.5,0.29545]
[1735777674507,3.23794281,3392.3,3391.4,0.29546]
[1735777674508,0.29544,3391.8,3391.4,0.29546]
[1735777675010,3.23794281,3392.3,3391.3,3.2078]
[1735777675313,0.29544,3391.7,3391.3,3.50327]
[1735777675510,3.23794281,3392.3,3391.3,3.2078]
[1735777675706,0.29546,3391.4,3391.3,3.2078]
[1735777676218,0.29551,3390.9,3390.8,0.00894402]
[1735777676809,0.29556,3390.4,3389.8,4.2027]
[1735777677104,0.29556,3390.4,3390.0,0.29558]
[1735777677418,0.29558,3390.1,3389.8,3.5034]
[1735777677813,0.29559,3390.0,3389.8,3.2078]
[1735777678116,0.29557,3390.2,3389.8,3.5034]
[1735777678418,0.29558,3390.2,3389.8,3.5034]
[1735777679215,3.2078,3390.7,3389.8,3.2078]
[1735777679924,5.0,3390.7,3389.4,3.2078]
[1735777680212,3.2078,3390.4,3389.4,3.2078]
[1735777680615,0.73893,3390.2,3389.4,3.2078]
[1735777680813,3.2078,3390.0,3388.9,3.2078]
[1735777681109,3.2078,3390.0,3388.2,0.73934]
[1735777681110,0.29566,3389.1,3388.8,0.29569]
[1735777681312,3.2078,3390.0,3388.9,3.2078]
[1735777681511,0.29564,3389.4,3389.0,0.29567]
[1735777681713,0.29565,3389.3,3389.0,0.29567]
[1735777681914,3.94677,3390.0,3388.9,3.50348]
[1735777681915,0.73899,3389.9,3388.9,3.50348]
[1735777682218,3.2078,3389.6,3388.9,3.2078]
[1735777682409,3.2078,3389.6,3388.4,3.50352]
[1735777682410,0.2957,3388.7,3388.4,3.50352]
[1735777682609,0.29571,3388.6,3388.4,3.2078]
[1735777682814,4.2511,3389.5,3388.4,3.2078]
[1735777683010,3.2078,3390.0,3389.4,0.29564]
[1735777683311,4.24584281,3390.3,3388.4,5.0]
[1735777683312,1.0079,3390.3,3389.3,3.2078]
[1735777683521,1.0079,3390.3,3388.9,3.2078]
[1735777683522,3.23794281,3389.8,3388.9,3.2078]
[1735777683717,3.2078,3389.6,3388.9,3.2078]
[1735777683912,0.29567,3389.0,3388.9,3.2078]
[1735777684113,0.73909,3389.5,3387.6,8.12548]
[1735777684114,0.29571,3388.6,3388.5,3.2078]
[1735777684715,4.171,3389.2,3388.5,3.2078]
[1735777684920,0.29571,3388.6,3388.5,3.2078]
[1735777685515,1.03483,3389.1,3388.1,3.2078]
[1735777685716,0.47435247,3389.1,3388.1,3.2078]
[1735777685913,0.2957,3388.7,3388.3,0.29573]
[1735777686118,4.171,3389.2,3388.6,3.2078]
[1735777686420,0.29569,3388.8,3388.6,3.2078]
[1735777686722,3.2078,3389.6,3388.2,3.2078]
[1735777686918,0.2957,3388.7,3388.2,3.2078]
[1735777687126,0.29568,3389.0,3388.2,3.2078]
[1735777687327,0.9782,3389.5,3388.7,0.2957]
[1735777687527,0.29568,3389.0,3388.6,0.29571]
[1735777687730,0.29568,3388.9,3388.8,3.2078]
[1735777687916,0.29572,3388.5,3388.1,1.79175]
[1735777688424,0.29573,3388.4,3388.1,1.496]
[1735777688627,0.29567,3389.0,3388.2,0.29574]
[1735777688924,0.2957,3388.7,3388.4,3.2078]
[1735777689117,8.2078,3389.2,3388.4,3.2078]
[1735777689319,0.73917,3389.1,3388.1,1.496]
[1735777689518,0.29573,3388.4,3388.1,1.496]
[1735777689825,0.73917,3389.1,3387.9,0.01238817]
[1735777689826,0.29575,3388.2,3387.9,0.01238817]
[1735777690224,6.44574281,3388.8,3387.9,0.01238817]
[1735777690523,0.29574,3388.3,3387.9,0.30815817]
[1735777690725,3.2078,3388.8,3388.0,3.2078]
[1735777691026,3.2078,3388.8,3388.6,3.2078]
[1735777691027,0.29569,3388.8,3388.6,3.2078]
[1735777691218,3.2078,3389.0,3388.2,3.2078]
[1735777691518,0.29572,3388.5,3388.0,0.29576]
[1735777691723,0.29574,3388.3,3387.9,0.30814817]
[1735777691923,0.29572,3388.5,3388.1,0.29575]
[1735777692125,0.29573,3388.4,3388.0,0.29576]
[1735777692326,8.2078,3389.0,3387.9,0.01238817]
[1735777692526,0.29574,3388.3,3387.9,0.01238817]
[1735777692722,0.29572,3388.5,3387.9,0.01238817]
[1735777693019,8.2078,3389.0,3387.9,0.01238817]
[1735777693220,0.29568,3389.0,3388.6,0.2957]
[1735777693415,3.23794281,3389.3,3388.3,3.2078]
[1735777693620,0.29571,3388.6,3388.3,3.50353]
[1735777693829,3.23794281,3388.8,3388.3,3.2078]
[1735777694023,0.29572,3388.4,3387.9,0.01238817]
[1735777694319,0.29574,3388.3,3387.9,0.30814817]
[1735777694523,0.29575,3388.2,3387.9,0.30815817]
[1735777694715,0.29575,3388.2,3387.9,0.01238817]
[1735777694924,0.29576,3388.1,3387.9,0.01238817]
[1735777695420,0.29576,3388.0,3387.9,0.01238817]
[1735777696124,0.29576,3388.1,3387.9,0.01238817]
[1735777696317,0.29576,3388.0,3387.9,0.01238817]
[1735777697432,0.9653,3388.5,3387.9,0.01238817]
[1735777697722,0.29574,3388.3,3388.0,0.29576]
[1735777697924,3.2078,3389.1,3388.1,4.7038]
[1735777698141,1.0044,3389.5,3388.9,3.2078]
[1735777698319,0.4728974,3389.4,3389.3,3.50345]
[1735777698628,5.66614095,3389.5,3389.4,0.29564]
[1735777698923,5.65719693,3389.5,3389.4,0.29564]
[1735777699522,6.13038556,3389.5,3389.4,0.29564]
[1735777699729,5.65719693,3389.5,3389.4,0.29564]
[1735777699929,1.0298,3390.4,3389.3,3.2078]
[1735777700132,3.2078,3389.9,3389.3,3.2078]
[1735777700426,0.29564,3389.4,3389.3,3.2078]
[1735777700835,3.2078,3389.5,3388.7,3.2078]
[1735777701020,0.29569,3388.8,3388.7,3.2078]
[1735777701341,0.73913,3389.3,3388.2,3.2078]
[1735777701531,6.44574281,3388.9,3387.7,3.2078]
[1735777701830,0.29573,3388.4,3388.1,0.29575]
[1735777702029,1.0304,3388.8,3387.7,3.2078]
[1735777702226,3.2078,3388.5,3387.7,3.2078]
[1735777702635,0.29576,3388.0,3387.7,3.2078]
[1735777702931,0.29576,3388.0,3387.3,3.2078]
[1735777703234,5.29576,3388.0,3387.1,0.29583]
[1735777703424,0.29582,3387.3,3387.0,0.29584]
[1735777703625,0.29582,3387.4,3387.0,0.29584]
[1735777703836,0.29582,3387.4,3386.8,3.2078]
[1735777703837,3.2078,3387.5,3386.8,3.2078]
[1735777704129,0.29583,3387.2,3386.9,0.29585]
[1735777704336,0.29583,3387.2,3386.8,3.50366]
[1735777704526,0.29584,3387.1,3386.8,3.50366]
[1735777704726,0.29583,3387.2,3386.8,3.50366]
[1735777704925,0.29583,3387.3,3386.9,0.29585]
[1735777705434,3.2078,3387.5,3386.8,3.50366]
[1735777705435,0.29583,3387.2,3386.8,3.50366]
[1735777705627,0.29584,3387.1,3386.8,3.2078]
[1735777705826,0.29582,3387.3,3386.9,0.29585]
[1735777706022,0.29582,3387.3,3386.8,3.2078]
[1735777706023,0.29586,3386.9,3386.8,3.2078]
[1735777706229,3.2078,3387.1,3386.3,3.2078]
[1735777706534,0.2959,3386.4,3386.3,3.2078]
[1735777706738,0.29588,3386.7,3386.3,3.2078]
[1735777706923,0.9681,3386.8,3386.3,3.2078]
[1735777707129,0.9681,3386.8,3386.4,0.2959]
[1735777707330,0.9681,3386.8,3386.4,0.29589]
[1735777708134,0.47580699,3387.3,3386.8,0.29586]
[1735777708332,0.29657898,3387.4,3387.1,0.29584]
[1735777708532,0.29657898,3387.4,3386.7,3.2078]
[1735777708738,0.47580478,3387.4,3386.7,3.2078]
[1735777708928,0.29588,3386.7,3386.0,3.2078]
[1735777709125,0.2959,3386.4,3386.0,3.2078]
[1735777709329,0.77237127,3387.0,3386.3,3.2078]
[1735777709538,0.29583,3387.2,3386.7,0.29587]
[1735777709740,0.47582769,3387.3,3386.3,3.2078]
[1735777709937,4.01035548,3387.4,3386.3,3.2078]
[1735777710241,4.2113,3387.5,3386.7,3.2078]
[1735777710444,4.50711,3387.5,3387.0,0.29584]
[1735777711242,4.50711,3387.5,3387.1,0.29584]
[1735777711434,4.50711,3387.5,3387.0,0.29584]
[1735777711635,4.50711,3387.5,3387.1,0.29584]
[1735777712038,0.29584,3387.1,3386.7,3.2078]
[1735777712238,0.47567486,3387.3,3386.1,1.497]
[1735777712539,0.29589,3386.6,3386.1,1.79292]
[1735777712744,3.2078,3387.1,3385.8,0.01459896]
[1735777712938,3.504341,3387.1,3385.8,0.01459896]
[1735777713136,0.47567486,3387.0,3385.8,0.01459896]
[1735777713437,3.23794281,3387.4,3386.0,3.2078]
[1735777713636,9.0101723,3387.4,3386.0,3.2078]
[1735777713837,0.29583,3387.2,3386.7,0.29587]
[1735777714039,0.29583,3387.2,3386.6,0.29588]
[1735777714240,0.29583,3387.2,3386.4,3.2078]
[1735777714241,0.47571134,3387.2,3386.4,3.2078]
[1735777714438,0.29585,3387.0,3386.5,0.29589]
[1735777714638,0.47571134,3387.2,3386.4,3.2078]
[1735777714834,4.2218011,3387.3,3386.8,0.29586]
[1735777715144,3.45026976,3387.3,3386.4,3.2078]
[1735777715336,3.92582375,3387.3,3386.4,3.2078]
[1735777715538,0.29584,3387.1,3386.7,0.29587]
[1735777715940,0.47557325,3387.2,3386.4,3.2078]
[1735777716142,3.45026976,3387.3,3387.2,0.29583]
[1735777716444,3.45026976,3387.3,3387.2,3.50363]
[1735777716742,3.45026976,3387.3,3387.2,0.29583]
[1735777716944,3.45026976,3387.3,3387.0,0.29584]
[1735777717237,3.45026976,3387.3,3386.8,3.2078]
[1735777717432,4.47916976,3387.8,3387.2,3.2078]
[1735777717637,4.77494976,3387.8,3387.4,0.29581]
[1735777717837,4.47916976,3387.8,3387.2,3.2078]
[1735777718240,4.47916976,3387.8,3387.4,0.29581]
[1735777718438,4.47916976,3387.8,3387.5,0.2958]
[1735777718847,3.45026976,3387.7,3387.4,0.2958]
[1735777719044,3.45026976,3387.7,3387.6,3.50359]
[1735777720043,1.82516976,3387.7,3387.6,3.50359]
[1735777720244,3.46216566,3388.4,3387.8,0.29578]
[1735777720449,3.46216566,3388.4,3388.3,3.50353]
[1735777721537,7.80815968,3389.0,3388.3,3.2078]